[Event "Titled Tuesday Blitz October 5 2021"]
[White "Kezin, Roman"]
[Black "Swicarz, Maciej"]
[WhiteFideId "24124621"]
[BlackFideId "1113585"]
[WhiteElo "2557"]
[BlackElo "2130"]
[Result "1-0"]
[Round "06"]
[TimeControl "180+1"]
[Date "2021.10.05"]
[WhiteClock "0:00:08"]
[BlackClock "0:00:01"]

1. h4 {[%clk 0:03:00]}  d5 {[%clk 0:02:25]} 2. h5 {[%clk 0:03:01]}  e5 {[%clk 0:02:24]} 3. a4 {[%clk 0:03:01]}  Nc6 {[%clk 0:02:23]} 4. a5 {[%clk 0:03:02]}  a6 {[%clk 0:02:21]} 5. b3 {[%clk 0:03:01]}  Bb4 {[%clk 0:02:20]} 6. Bb2 {[%clk 0:03:02]}  Qe7 {[%clk 0:02:19]} 7. Nf3 {[%clk 0:03:00]}  f6 {[%clk 0:02:17]} 8. e3 {[%clk 0:02:58]}  Bxa5 {[%clk 0:02:16]} 9. Nc3 {[%clk 0:02:58]}  Be6 {[%clk 0:02:13]} 10. Ra4 {[%clk 0:02:59]}  Bb6 {[%clk 0:02:12]} 11. Qa1 {[%clk 0:02:55]}  Rd8 {[%clk 0:02:09]} 12. Be2 {[%clk 0:02:55]}  Nh6 {[%clk 0:02:08]} 13. Rhh4 {[%clk 0:02:50]}  O-O {[%clk 0:02:04]} 14. Kf1 {[%clk 0:02:50]}  Rfe8 {[%clk 0:02:02]} 15. Kg1 {[%clk 0:02:50]}  Qf7 {[%clk 0:02:01]} 16. Rh1 {[%clk 0:02:44]}  Bg4 {[%clk 0:01:57]} 17. Ng5 {[%clk 0:02:41]}  fxg5 {[%clk 0:01:41]} 18. Bxg4 {[%clk 0:02:41]}  d4 {[%clk 0:01:41]} 19. Be2 {[%clk 0:02:42]}  dxc3 {[%clk 0:01:38]} 20. Bc4 {[%clk 0:02:42]}  Re6 {[%clk 0:01:29]} 21. Bxc3 {[%clk 0:02:42]}  Kh8 {[%clk 0:01:27]} 22. Qe1 {[%clk 0:02:31]}  Qf5 {[%clk 0:01:24]} 23. Bxe6 {[%clk 0:02:30]}  Qxe6 {[%clk 0:01:25]} 24. Qe2 {[%clk 0:02:30]}  Rf8 {[%clk 0:01:21]} 25. Rh3 {[%clk 0:02:10]}  g4 {[%clk 0:01:17]} 26. Rg3 {[%clk 0:02:10]}  Qf5 {[%clk 0:01:15]} 27. f3 {[%clk 0:01:35]}  Qxc2 {[%clk 0:01:11]} 28. fxg4 {[%clk 0:01:36]}  Qxb3 {[%clk 0:01:11]} 29. Ra1 {[%clk 0:01:35]}  Qe6 {[%clk 0:01:05]} 30. g5 {[%clk 0:01:33]}  Nf5 {[%clk 0:01:05]} 31. Rf1 {[%clk 0:01:32]}  Rd8 {[%clk 0:01:00]} 32. Qg4 {[%clk 0:01:28]}  Nce7 {[%clk 0:00:52]} 33. Rgf3 {[%clk 0:01:24]}  Nd4 {[%clk 0:00:31]} 34. Qxe6 {[%clk 0:01:07]}  Nxe6 {[%clk 0:00:31]} 35. Bxe5 {[%clk 0:01:08]}  Kg8 {[%clk 0:00:24]} 36. h6 {[%clk 0:01:02]}  Nxg5 {[%clk 0:00:21]} 37. Rg3 {[%clk 0:01:02]}  gxh6 {[%clk 0:00:20]} 38. Bf6 {[%clk 0:00:58]}  Rd7 {[%clk 0:00:17]} 39. Bc3 {[%clk 0:00:41]}  Ng6 {[%clk 0:00:17]} 40. Rg4 {[%clk 0:00:42]}  Bc5 {[%clk 0:00:14]} 41. Rc4 {[%clk 0:00:41]}  b6 {[%clk 0:00:14]} 42. Kh1 {[%clk 0:00:40]}  Bd6 {[%clk 0:00:13]} 43. Rg4 {[%clk 0:00:27]}  a5 {[%clk 0:00:12]} 44. Re1 {[%clk 0:00:25]}  Be5 {[%clk 0:00:12]} 45. d4 {[%clk 0:00:26]}  Bg7 {[%clk 0:00:12]} 46. Kg1 {[%clk 0:00:18]}  Nf8 {[%clk 0:00:10]} 47. Rd1 {[%clk 0:00:17]}  Nfe6 {[%clk 0:00:10]} 48. Kf2 {[%clk 0:00:16]}  c5 {[%clk 0:00:10]} 49. Ke2 {[%clk 0:00:17]}  cxd4 {[%clk 0:00:10]} 50. exd4 {[%clk 0:00:18]}  Re7 {[%clk 0:00:10]} 51. Kd3 {[%clk 0:00:18]}  Nc7 {[%clk 0:00:09]} 52. Rb1 {[%clk 0:00:14]}  Nd5 {[%clk 0:00:08]} 53. Bd2 {[%clk 0:00:12]}  Rd7 {[%clk 0:00:07]} 54. Rb5 {[%clk 0:00:09]}  Nf6 {[%clk 0:00:06]} 55. Rf4 {[%clk 0:00:09]}  Nh5 {[%clk 0:00:06]} 56. Rh4 {[%clk 0:00:05]}  Nf6 {[%clk 0:00:05]} 57. Rxb6 {[%clk 0:00:06]}  Nd5 {[%clk 0:00:04]} 58. Rb8+ {[%clk 0:00:06]}  Kf7 {[%clk 0:00:05]} 59. Bxa5 {[%clk 0:00:06]}  Nf6 {[%clk 0:00:04]} 60. Bc3 {[%clk 0:00:06]}  Kg6 {[%clk 0:00:04]} 61. Rb6 {[%clk 0:00:06]}  Kf7 {[%clk 0:00:01]} 62. Ra6 {[%clk 0:00:06]}  Nd5 {[%clk 0:00:02]} 63. Bd2 {[%clk 0:00:07]}  Nf6 {[%clk 0:00:02]} 64. Rf4 {[%clk 0:00:07]}  Kg6 {[%clk 0:00:01]} 65. Bc3 {[%clk 0:00:07]}  Kf7 {[%clk 0:00:01]} 66. Kc2 {[%clk 0:00:08]}  Ke7 {[%clk 0:00:01]} 67. Bb4+ {[%clk 0:00:08]}  Kf7 {[%clk 0:00:01]} 68. Kb3 {[%clk 0:00:07]}  Kg6 {[%clk 0:00:01]} 69. Bc3 {[%clk 0:00:08]}  Kf7 {[%clk 0:00:01]} 70. d5 {[%clk 0:00:08]} 1-0


[Site "https://www.chess.com"]

[Event "Titled Tuesday Blitz October 5 2021"]
[White "Khusnutdinov, Rustam"]
[Black "Sarana, Alexey"]
[WhiteFideId "13701703"]
[BlackFideId "24133795"]
[WhiteElo "2571"]
[BlackElo "2671"]
[Result "0-1"]
[Round "06"]
[TimeControl "180+1"]
[Date "2021.10.05"]
[WhiteClock "0:00:10"]
[BlackClock "0:00:03"]

1. e4 {[%clk 0:03:00]}  c5 {[%clk 0:03:00]} 2. Nf3 {[%clk 0:02:59]}  d6 {[%clk 0:03:00]} 3. Bb5+ {[%clk 0:03:00]}  Bd7 {[%clk 0:03:01]} 4. Bxd7+ {[%clk 0:02:59]}  Nxd7 {[%clk 0:03:02]} 5. c4 {[%clk 0:02:56]}  Ne5 {[%clk 0:03:00]} 6. O-O {[%clk 0:02:51]}  e6 {[%clk 0:03:00]} 7. b3 {[%clk 0:02:37]}  Ne7 {[%clk 0:02:54]} 8. Bb2 {[%clk 0:02:30]}  N7c6 {[%clk 0:02:51]} 9. Ne1 {[%clk 0:02:28]}  g5 {[%clk 0:02:41]} 10. Nc2 {[%clk 0:02:20]}  Bg7 {[%clk 0:02:35]} 11. d4 {[%clk 0:02:21]}  cxd4 {[%clk 0:01:47]} 12. Nxd4 {[%clk 0:02:21]}  g4 {[%clk 0:01:46]} 13. Nd2 {[%clk 0:01:49]}  Qh4 {[%clk 0:01:42]} 14. f4 {[%clk 0:01:42]}  Nd3 {[%clk 0:01:30]} 15. Nf5 {[%clk 0:01:15]}  Nxb2 {[%clk 0:00:49]} 16. Nxg7+ {[%clk 0:01:14]}  Kf8 {[%clk 0:00:49]} 17. Qc2 {[%clk 0:01:15]}  Qf6 {[%clk 0:00:34]} 18. Nxe6+ {[%clk 0:01:12]}  fxe6 {[%clk 0:00:26]} 19. e5 {[%clk 0:01:13]}  Qf5 {[%clk 0:00:15]} 20. Qxb2 {[%clk 0:01:11]}  d5 {[%clk 0:00:16]} 21. cxd5 {[%clk 0:00:59]}  exd5 {[%clk 0:00:17]} 22. b4 {[%clk 0:00:49]}  Rg8 {[%clk 0:00:11]} 23. b5 {[%clk 0:00:49]}  Ne7 {[%clk 0:00:12]} 24. Nb3 {[%clk 0:00:49]}  g3 {[%clk 0:00:12]} 25. h3 {[%clk 0:00:49]}  Rg6 {[%clk 0:00:06]} 26. Nd4 {[%clk 0:00:49]}  Qd3 {[%clk 0:00:06]} 27. f5 {[%clk 0:00:47]}  Rh6 {[%clk 0:00:06]} 28. Rf3 {[%clk 0:00:43]}  Qe4 {[%clk 0:00:04]} 29. Rxg3 {[%clk 0:00:40]}  Rc8 {[%clk 0:00:05]} 30. Ne6+ {[%clk 0:00:38]}  Ke8 {[%clk 0:00:03]} 31. Ng7+ {[%clk 0:00:33]}  Kf8 {[%clk 0:00:03]} 32. e6 {[%clk 0:00:28]}  Rc2 {[%clk 0:00:02]} 33. Qa3 {[%clk 0:00:22]}  Qd4+ {[%clk 0:00:02]} 34. Kh2 {[%clk 0:00:18]}  Qxa1 {[%clk 0:00:03]} 35. Qxa7 {[%clk 0:00:16]}  Rc8 {[%clk 0:00:03]} 36. Qg1 {[%clk 0:00:14]}  Qe5 {[%clk 0:00:03]} 37. Qf2 {[%clk 0:00:11]}  Rc3 {[%clk 0:00:03]} 38. f6 {[%clk 0:00:10]}  Rxf6 {[%clk 0:00:03]} 0-1


[Site "https://www.chess.com"]

[Event "Titled Tuesday Blitz October 5 2021"]
[White "Kovalchuk94"]
[Black "Sagripanti, Michele"]
[BlackFideId "847895"]
[WhiteElo "2672"]
[BlackElo "2195"]
[Result "1-0"]
[Round "06"]
[TimeControl "180+1"]
[Date "2021.10.05"]
[WhiteClock "0:00:25"]
[BlackClock "0:00:19"]

1. d4 {[%clk 0:02:19]}  Nf6 {[%clk 0:02:58]} 2. c4 {[%clk 0:02:18]}  e6 {[%clk 0:02:59]} 3. Nf3 {[%clk 0:02:18]}  Bb4+ {[%clk 0:02:59]} 4. Nbd2 {[%clk 0:02:17]}  Qe7 {[%clk 0:02:58]} 5. g3 {[%clk 0:02:12]}  O-O {[%clk 0:02:58]} 6. Bg2 {[%clk 0:02:12]}  d6 {[%clk 0:02:58]} 7. O-O {[%clk 0:02:11]}  Bxd2 {[%clk 0:02:58]} 8. Bxd2 {[%clk 0:01:48]}  Nc6 {[%clk 0:02:58]} 9. Bc3 {[%clk 0:01:47]}  e5 {[%clk 0:02:57]} 10. d5 {[%clk 0:01:46]}  Nb8 {[%clk 0:02:57]} 11. Nd2 {[%clk 0:01:45]}  Bf5 {[%clk 0:02:55]} 12. e4 {[%clk 0:01:45]}  Bg6 {[%clk 0:02:55]} 13. Qe2 {[%clk 0:01:40]}  Nbd7 {[%clk 0:02:54]} 14. b4 {[%clk 0:01:25]}  Ne8 {[%clk 0:02:51]} 15. f4 {[%clk 0:01:21]}  exf4 {[%clk 0:02:45]} 16. gxf4 {[%clk 0:01:21]}  f5 {[%clk 0:02:43]} 17. e5 {[%clk 0:01:21]}  Nef6 {[%clk 0:02:22]} 18. Rae1 {[%clk 0:01:14]}  Rae8 {[%clk 0:02:14]} 19. e6 {[%clk 0:01:06]}  Nb6 {[%clk 0:01:56]} 20. Bd4 {[%clk 0:01:01]}  c6 {[%clk 0:01:33]} 21. dxc6 {[%clk 0:00:55]}  bxc6 {[%clk 0:01:32]} 22. Bxc6 {[%clk 0:00:55]}  Rc8 {[%clk 0:01:30]} 23. Bf3 {[%clk 0:00:50]}  Ne4 {[%clk 0:01:22]} 24. Nxe4 {[%clk 0:00:45]}  fxe4 {[%clk 0:01:20]} 25. Bxe4 {[%clk 0:00:46]}  Bxe4 {[%clk 0:01:13]} 26. Qxe4 {[%clk 0:00:45]}  Rxc4 {[%clk 0:01:11]} 27. Kh1 {[%clk 0:00:40]}  Rxb4 {[%clk 0:00:44]} 28. Rg1 {[%clk 0:00:30]}  Rf6 {[%clk 0:00:24]} 29. Bxf6 {[%clk 0:00:27]}  Rxe4 {[%clk 0:00:21]} 30. Bxe7 {[%clk 0:00:26]}  Rxe1 {[%clk 0:00:21]} 31. Rxe1 {[%clk 0:00:26]}  Nd5 {[%clk 0:00:19]} 32. Bxd6 {[%clk 0:00:25]} 1-0


[Site "https://www.chess.com"]

[Event "Titled Tuesday Blitz October 5 2021"]
[White "Kovalev, Vladislav"]
[Black "Starozhilov, Leonid"]
[WhiteFideId "13504398"]
[BlackFideId "14106752"]
[WhiteElo "2573"]
[BlackElo "2414"]
[Result "1-0"]
[Round "06"]
[TimeControl "180+1"]
[Date "2021.10.05"]
[WhiteClock "0:00:06"]
[BlackClock "0:00:04"]

1. e4 {[%clk 0:02:13]}  c5 {[%clk 0:02:57]} 2. Be2 {[%clk 0:02:13]}  Nc6 {[%clk 0:02:55]} 3. d3 {[%clk 0:02:14]}  g6 {[%clk 0:02:55]} 4. f4 {[%clk 0:02:15]}  Bg7 {[%clk 0:02:55]} 5. Nf3 {[%clk 0:02:16]}  d6 {[%clk 0:02:51]} 6. O-O {[%clk 0:02:16]}  Nf6 {[%clk 0:02:50]} 7. c3 {[%clk 0:02:16]}  c4 {[%clk 0:02:32]} 8. Nbd2 {[%clk 0:02:16]}  cxd3 {[%clk 0:02:24]} 9. Bxd3 {[%clk 0:02:17]}  O-O {[%clk 0:02:23]} 10. Qe2 {[%clk 0:02:16]}  Bd7 {[%clk 0:02:15]} 11. Kh1 {[%clk 0:02:14]}  a6 {[%clk 0:02:12]} 12. Nb3 {[%clk 0:02:08]}  Rc8 {[%clk 0:02:06]} 13. Bd2 {[%clk 0:02:09]}  Bg4 {[%clk 0:01:59]} 14. Rae1 {[%clk 0:02:07]}  Nd7 {[%clk 0:01:59]} 15. h3 {[%clk 0:02:04]}  Bxf3 {[%clk 0:01:59]} 16. Rxf3 {[%clk 0:01:55]}  Na5 {[%clk 0:01:55]} 17. Bc1 {[%clk 0:01:04]}  b5 {[%clk 0:01:46]} 18. Bb1 {[%clk 0:00:57]}  Nc4 {[%clk 0:01:41]} 19. Rd3 {[%clk 0:00:52]}  Qc7 {[%clk 0:01:34]} 20. Nd4 {[%clk 0:00:45]}  e5 {[%clk 0:01:20]} 21. Nf3 {[%clk 0:00:36]}  exf4 {[%clk 0:01:19]} 22. Bxf4 {[%clk 0:00:36]}  Nce5 {[%clk 0:01:13]} 23. Rd2 {[%clk 0:00:33]}  Nc4 {[%clk 0:00:44]} 24. Rd3 {[%clk 0:00:33]}  Nce5 {[%clk 0:00:44]} 25. Rd5 {[%clk 0:00:33]}  Nb6 {[%clk 0:00:39]} 26. Rdd1 {[%clk 0:00:33]}  Rfe8 {[%clk 0:00:31]} 27. a3 {[%clk 0:00:32]}  Nbc4 {[%clk 0:00:28]} 28. Nd4 {[%clk 0:00:32]}  Nc6 {[%clk 0:00:23]} 29. Nf3 {[%clk 0:00:26]}  N4e5 {[%clk 0:00:22]} 30. Nd2 {[%clk 0:00:24]}  Re7 {[%clk 0:00:21]} 31. Ba2 {[%clk 0:00:24]}  h6 {[%clk 0:00:20]} 32. Rf1 {[%clk 0:00:24]}  Kh7 {[%clk 0:00:20]} 33. Rf2 {[%clk 0:00:25]}  Rce8 {[%clk 0:00:20]} 34. Rdf1 {[%clk 0:00:25]}  Na5 {[%clk 0:00:19]} 35. Bd5 {[%clk 0:00:23]}  Rf8 {[%clk 0:00:16]} 36. Nf3 {[%clk 0:00:16]}  Nac6 {[%clk 0:00:13]} 37. Nxe5 {[%clk 0:00:16]}  Nxe5 {[%clk 0:00:13]} 38. Be3 {[%clk 0:00:15]}  Nc4 {[%clk 0:00:09]} 39. Bd4 {[%clk 0:00:14]}  Ne5 {[%clk 0:00:08]} 40. Rf4 {[%clk 0:00:13]}  Qd7 {[%clk 0:00:09]} 41. R1f2 {[%clk 0:00:13]}  Qc7 {[%clk 0:00:07]} 42. Qf1 {[%clk 0:00:14]}  Kg8 {[%clk 0:00:07]} 43. h4 {[%clk 0:00:11]}  h5 {[%clk 0:00:06]} 44. Qd1 {[%clk 0:00:10]}  Ng4 {[%clk 0:00:05]} 45. Rxg4 {[%clk 0:00:10]}  hxg4 {[%clk 0:00:05]} 46. Qxg4 {[%clk 0:00:11]}  Bxd4 {[%clk 0:00:04]} 47. cxd4 {[%clk 0:00:12]}  Kh7 {[%clk 0:00:04]} 48. Kh2 {[%clk 0:00:11]}  Qc1 {[%clk 0:00:05]} 49. Rf4 {[%clk 0:00:10]}  Qe3 {[%clk 0:00:05]} 50. h5 {[%clk 0:00:10]}  Rg8 {[%clk 0:00:04]} 51. Qg5 {[%clk 0:00:07]}  Rg7 {[%clk 0:00:03]} 52. hxg6+ {[%clk 0:00:05]}  Rxg6 {[%clk 0:00:03]} 53. Rh4+ {[%clk 0:00:06]}  Kg7 {[%clk 0:00:04]} 54. Qxe3 {[%clk 0:00:06]} 1-0


[Site "https://www.chess.com"]

[Event "Titled Tuesday Blitz October 5 2021"]
[White "Krysa, Leandro"]
[Black "Pastar, Slaven"]
[WhiteFideId "116807"]
[BlackFideId "14402718"]
[WhiteElo "2490"]
[BlackElo "2198"]
[Result "1-0"]
[Round "06"]
[TimeControl "180+1"]
[Date "2021.10.05"]
[WhiteClock "0:00:04"]
[BlackClock "0:00:02"]

1. e4 {[%clk 0:03:00]}  b6 {[%clk 0:03:00]} 2. d4 {[%clk 0:03:00]}  Bb7 {[%clk 0:03:01]} 3. Nc3 {[%clk 0:03:00]}  e6 {[%clk 0:03:01]} 4. Bd3 {[%clk 0:03:00]}  Nf6 {[%clk 0:03:01]} 5. Nge2 {[%clk 0:02:59]}  d5 {[%clk 0:03:00]} 6. exd5 {[%clk 0:02:57]}  Nxd5 {[%clk 0:02:57]} 7. Nxd5 {[%clk 0:02:57]}  Bxd5 {[%clk 0:02:49]} 8. O-O {[%clk 0:02:56]}  Be7 {[%clk 0:02:48]} 9. Nf4 {[%clk 0:02:53]}  O-O {[%clk 0:02:29]} 10. Nxd5 {[%clk 0:02:41]}  exd5 {[%clk 0:02:27]} 11. Re1 {[%clk 0:02:37]}  Bf6 {[%clk 0:02:26]} 12. c3 {[%clk 0:02:33]}  c5 {[%clk 0:02:25]} 13. dxc5 {[%clk 0:01:45]}  bxc5 {[%clk 0:02:26]} 14. Qf3 {[%clk 0:01:40]}  Nc6 {[%clk 0:02:22]} 15. Bh6 {[%clk 0:01:20]}  Ne5 {[%clk 0:01:21]} 16. Rxe5 {[%clk 0:01:16]}  Bxe5 {[%clk 0:01:22]} 17. Qf5 {[%clk 0:01:16]}  Bxh2+ {[%clk 0:01:19]} 18. Kf1 {[%clk 0:01:05]}  g6 {[%clk 0:01:17]} 19. Qh3 {[%clk 0:01:00]}  Be5 {[%clk 0:01:13]} 20. Bxf8 {[%clk 0:00:59]}  Qxf8 {[%clk 0:01:13]} 21. Re1 {[%clk 0:01:00]}  Qd6 {[%clk 0:01:05]} 22. Qf3 {[%clk 0:00:55]}  Rd8 {[%clk 0:01:02]} 23. g3 {[%clk 0:00:55]}  c4 {[%clk 0:00:56]} 24. Bc2 {[%clk 0:00:44]}  d4 {[%clk 0:00:49]} 25. cxd4 {[%clk 0:00:41]}  Bxd4 {[%clk 0:00:45]} 26. b3 {[%clk 0:00:28]}  Qc5 {[%clk 0:00:33]} 27. Kg2 {[%clk 0:00:21]}  Rd6 {[%clk 0:00:25]} 28. Re2 {[%clk 0:00:12]}  Rf6 {[%clk 0:00:23]} 29. Qe4 {[%clk 0:00:10]}  Bxf2 {[%clk 0:00:16]} 30. Qxc4 {[%clk 0:00:10]}  Qxc4 {[%clk 0:00:11]} 31. bxc4 {[%clk 0:00:10]}  Bb6 {[%clk 0:00:10]} 32. Be4 {[%clk 0:00:08]}  Kg7 {[%clk 0:00:10]} 33. Bd5 {[%clk 0:00:08]}  h5 {[%clk 0:00:10]} 34. a4 {[%clk 0:00:08]}  g5 {[%clk 0:00:09]} 35. Re7 {[%clk 0:00:08]}  Rf2+ {[%clk 0:00:08]} 36. Kh1 {[%clk 0:00:08]}  Rd2 {[%clk 0:00:05]} 37. Rxf7+ {[%clk 0:00:07]}  Kg6 {[%clk 0:00:05]} 38. a5 {[%clk 0:00:08]}  Bxa5 {[%clk 0:00:05]} 39. Rxa7 {[%clk 0:00:08]}  Bc3 {[%clk 0:00:05]} 40. Be4+ {[%clk 0:00:05]}  Kf6 {[%clk 0:00:04]} 41. c5 {[%clk 0:00:06]}  Ke5 {[%clk 0:00:04]} 42. c6 {[%clk 0:00:04]}  Rd1+ {[%clk 0:00:02]} 43. Kg2 {[%clk 0:00:04]} 1-0


[Site "https://www.chess.com"]

[Event "Titled Tuesday Blitz October 5 2021"]
[White "Ladan, Nicholas"]
[Black "Gimenez Aguirre, Alejo Ismael"]
[WhiteFideId "30918855"]
[BlackFideId "32041667"]
[WhiteElo "2401"]
[BlackElo "2031"]
[Result "0-1"]
[Round "06"]
[TimeControl "180+1"]
[Date "2021.10.05"]
[WhiteClock "0:00:10"]
[BlackClock "0:01:20"]

1. g3 {[%clk 0:03:00]}  d5 {[%clk 0:02:58]} 2. Bg2 {[%clk 0:03:01]}  c6 {[%clk 0:02:59]} 3. b3 {[%clk 0:03:00]}  Nf6 {[%clk 0:03:00]} 4. Bb2 {[%clk 0:03:01]}  g6 {[%clk 0:03:01]} 5. Nf3 {[%clk 0:03:00]}  Bg7 {[%clk 0:03:01]} 6. O-O {[%clk 0:03:00]}  O-O {[%clk 0:02:59]} 7. d3 {[%clk 0:03:01]}  Nbd7 {[%clk 0:02:59]} 8. Nbd2 {[%clk 0:03:01]}  Re8 {[%clk 0:02:59]} 9. c4 {[%clk 0:03:00]}  e5 {[%clk 0:02:59]} 10. e4 {[%clk 0:03:01]}  dxe4 {[%clk 0:02:47]} 11. dxe4 {[%clk 0:02:56]}  Qe7 {[%clk 0:02:47]} 12. Qc2 {[%clk 0:02:55]}  b6 {[%clk 0:02:45]} 13. Rad1 {[%clk 0:02:54]}  Bb7 {[%clk 0:02:45]} 14. Nb1 {[%clk 0:02:50]}  Rad8 {[%clk 0:02:44]} 15. Rfe1 {[%clk 0:02:49]}  h6 {[%clk 0:02:33]} 16. h4 {[%clk 0:02:31]}  Ng4 {[%clk 0:02:28]} 17. Bh3 {[%clk 0:02:25]}  h5 {[%clk 0:02:28]} 18. Ng5 {[%clk 0:02:21]}  Nc5 {[%clk 0:02:25]} 19. f3 {[%clk 0:02:06]}  Nh6 {[%clk 0:02:24]} 20. b4 {[%clk 0:01:56]}  Na6 {[%clk 0:02:17]} 21. a3 {[%clk 0:01:56]}  f6 {[%clk 0:02:16]} 22. Rxd8 {[%clk 0:01:43]}  Rxd8 {[%clk 0:02:13]} 23. Ne6 {[%clk 0:01:43]}  Rd6 {[%clk 0:02:14]} 24. Nxg7 {[%clk 0:01:41]}  Kxg7 {[%clk 0:02:15]} 25. Rd1 {[%clk 0:01:22]}  c5 {[%clk 0:02:13]} 26. b5 {[%clk 0:01:19]}  Nc7 {[%clk 0:02:11]} 27. Nc3 {[%clk 0:01:19]}  f5 {[%clk 0:01:52]} 28. Nd5 {[%clk 0:01:13]}  Nxd5 {[%clk 0:01:50]} 29. cxd5 {[%clk 0:01:09]}  fxe4 {[%clk 0:01:46]} 30. fxe4 {[%clk 0:01:07]}  Rf6 {[%clk 0:01:43]} 31. Qc3 {[%clk 0:00:59]}  Nf7 {[%clk 0:01:37]} 32. Be6 {[%clk 0:00:59]}  Rxe6 {[%clk 0:01:37]} 33. dxe6 {[%clk 0:00:59]}  Qxe6 {[%clk 0:01:38]} 34. Rf1 {[%clk 0:00:53]}  Bxe4 {[%clk 0:01:34]} 35. Re1 {[%clk 0:00:41]}  Bd5 {[%clk 0:01:25]} 36. Qe3 {[%clk 0:00:40]}  Qh3 {[%clk 0:01:21]} 37. Bxe5+ {[%clk 0:00:37]}  Kh7 {[%clk 0:01:22]} 38. Re2 {[%clk 0:00:17]}  Qh1+ {[%clk 0:01:21]} 39. Kf2 {[%clk 0:00:18]}  Nh6 {[%clk 0:01:22]} 40. Rd2 {[%clk 0:00:13]}  Ng4+ {[%clk 0:01:22]} 41. Ke2 {[%clk 0:00:13]}  Nxe3 {[%clk 0:01:21]} 42. Kxe3 {[%clk 0:00:14]}  Qe4+ {[%clk 0:01:21]} 43. Kf2 {[%clk 0:00:14]}  Qxe5 {[%clk 0:01:22]} 44. Re2 {[%clk 0:00:14]}  Qf5+ {[%clk 0:01:23]} 45. Ke1 {[%clk 0:00:14]}  Be4 {[%clk 0:01:22]} 46. a4 {[%clk 0:00:14]}  c4 {[%clk 0:01:22]} 47. a5 {[%clk 0:00:15]}  bxa5 {[%clk 0:01:21]} 48. b6 {[%clk 0:00:15]}  axb6 {[%clk 0:01:22]} 49. g4 {[%clk 0:00:16]}  hxg4 {[%clk 0:01:21]} 50. h5 {[%clk 0:00:17]}  gxh5 {[%clk 0:01:22]} 51. Rh2 {[%clk 0:00:18]}  c3 {[%clk 0:01:21]} 52. Ke2 {[%clk 0:00:14]}  Qf3+ {[%clk 0:01:20]} 53. Ke1 {[%clk 0:00:12]}  Qe3+ {[%clk 0:01:21]} 54. Kf1 {[%clk 0:00:10]}  Bd3+ {[%clk 0:01:20]} 55. Kg2 {[%clk 0:00:10]}  Qf3+ {[%clk 0:01:19]} 56. Kg1 {[%clk 0:00:10]}  Qf1# {[%clk 0:01:20]} 0-1


[Site "https://www.chess.com"]

[Event "Titled Tuesday Blitz October 5 2021"]
[White "Lashkin, Jegor"]
[Black "Avila Pavas, Santiago"]
[WhiteFideId "13907808"]
[BlackFideId "4437128"]
[WhiteElo "2293"]
[BlackElo "2292"]
[Result "0-1"]
[Round "06"]
[TimeControl "180+1"]
[Date "2021.10.05"]
[WhiteClock "0:00:01"]
[BlackClock "0:01:20"]

1. d4 {[%clk 0:03:00]}  Nf6 {[%clk 0:02:59]} 2. c4 {[%clk 0:03:01]}  c5 {[%clk 0:03:00]} 3. d5 {[%clk 0:03:01]}  b5 {[%clk 0:03:00]} 4. cxb5 {[%clk 0:03:01]}  a6 {[%clk 0:03:01]} 5. bxa6 {[%clk 0:03:01]}  g6 {[%clk 0:03:02]} 6. Nc3 {[%clk 0:03:01]}  Bg7 {[%clk 0:03:02]} 7. e4 {[%clk 0:03:01]}  O-O {[%clk 0:03:02]} 8. Nf3 {[%clk 0:02:56]}  Qa5 {[%clk 0:03:03]} 9. a7 {[%clk 0:02:51]}  Nxe4 {[%clk 0:02:52]} 10. axb8=Q {[%clk 0:02:50]}  Rxb8 {[%clk 0:02:53]} 11. Bd2 {[%clk 0:01:54]}  Nxd2 {[%clk 0:02:52]} 12. Nxd2 {[%clk 0:01:50]}  Rxb2 {[%clk 0:02:53]} 13. Nce4 {[%clk 0:01:23]}  f5 {[%clk 0:02:52]} 14. Rc1 {[%clk 0:01:09]}  fxe4 {[%clk 0:02:51]} 15. Rc2 {[%clk 0:01:09]}  Qxa2 {[%clk 0:02:21]} 16. Rxb2 {[%clk 0:01:07]}  Qxb2 {[%clk 0:02:22]} 17. Qb1 {[%clk 0:00:38]}  Qc3 {[%clk 0:02:02]} 18. Qb3 {[%clk 0:00:29]}  Qa1+ {[%clk 0:01:37]} 19. Qd1 {[%clk 0:00:29]}  Qd4 {[%clk 0:01:38]} 20. Qe2 {[%clk 0:00:23]}  Bb7 {[%clk 0:01:28]} 21. g3 {[%clk 0:00:15]}  Bxd5 {[%clk 0:01:25]} 22. Bg2 {[%clk 0:00:15]}  e3 {[%clk 0:01:23]} 23. O-O {[%clk 0:00:06]}  Bxg2 {[%clk 0:01:20]} 24. Nb3 {[%clk 0:00:04]}  Qd5 {[%clk 0:01:20]} 25. Rb1 {[%clk 0:00:01]} 0-1


[Site "https://www.chess.com"]